Cogmind - Beta 10.2 @@@ ROGUE MODE // 2022.01.19 @ 21:52:51 // AFD2019/Pay2Buy Player: FontPeg Result: Destroyed by H-66 Slayer with Gauss Rifle Performance ------------- Evolutions (4) 2000 Regions Visited (5) 1000 Robots Destroyed (46) 230 Value Destroyed (1255) 1255 Prototype IDs (2) 40 Alien Tech Used (0) 0 Bonus (24) 24 TOTAL SCORE: 4549 Bonus ------- High Alert Combat Kills 24 Cogmind --------- Core Integrity 0/850 Matter 300/300 Energy 100/100 System Corruption 0% Temperature Cool (0) Movement Core (50) Location -6/Factory Parts ------- > --- POWER (2) -------- (None) > --- PROPULSION (3) --- (None) > --- UTILITY (6) ------ Signal Interpreter Advanced Terrain Scan Processor > --- WEAPON (4) ------- Katana > --- INVENTORY (10) --- (None) Peak State ------------ > --- POWER ------------ (None) > --- PROPULSION ------- Advanced Treads > --- UTILITY ---------- Signal Interpreter Long-range Terrain Scanner Advanced Terrain Scan Processor Advanced Reclamation Unit > --- WEAPON ----------- Enhanced Autogun Enhanced Autogun Gauss Rifle > --- INVENTORY -------- (None) [Rating: 30] Favorites ----------- Power Heavy Ion Engine Engine Heavy Ion Engine Propulsion Advanced Treads Treads Advanced Treads Utility Signal Interpreter Device Long-range Terrain Scanner Processor Signal Interpreter Protection Medium Armor Plating Weapon Enhanced Autogun Energy Gun Particle Gun Ballistic Gun Enhanced Autogun Impact Weapon Great Maul Slashing Weapon Katana Build | -11 -10 -9 -8 -7 -6 ------- Run | Scr Mat Mat Mat Fac Fac Slots Evolved 8 | . . 2 2 2 2 Power 1 | . . . 1 . . Propulsion 1 | . . . . . 1 Utility 4 | . . 1 . 2 1 Weapon 2 | . . 1 1 . . Parts Attached 7 | . 6 . . 1 . Power 1 | . 1 . . . . Engine 1 | . 1 . . . . Core . | . . . . . . Reactor . | . . . . . . Propulsion . | . . . . . . Treads . | . . . . . . Leg . | . . . . . . Wheel . | . . . . . . Hover . | . . . . . . Flight . | . . . . . . Utility 2 | . 1 . . 1 . Device 1 | . . . . 1 . Storage . | . . . . . . Processor . | . . . . . . Hackware . | . . . . . . Protection 1 | . 1 . . . . Artifact . | . . . . . . Weapon 4 | . 4 . . . . Energy Gun 4 | . 4 . . . . Energy Cannon . | . . . . . . Ballistic Gun . | . . . . . . Ballistic Cannon . | . . . . . . Launcher . | . . . . . . Special Weapon . | . . . . . . Impact Weapon . | . . . . . . Slashing Weapon . | . . . . . . Piercing Weapon . | . . . . . . Special Melee Weapon . | . . . . . . Unidentified Prototypes . | . . . . . . Parts Lost 17 | . 7 . 1 . 9 Power 1 | . 1 . . . . Propulsion 3 | . 2 . . . 1 Utility 3 | . 1 . . . 2 Weapon 10 | . 3 . 1 . 6 Highest Loss Streak 6 | . 5 . 1 . 6 Average Slot Usage (%) 50 | . 63 32 61 61 47 Engine 1 | . 9 . . . . Treads 7 | . 22 . 9 7 4 Device 6 | . . . 9 15 11 Processor 11 | . . 11 18 15 13 Protection 1 | . 9 . . . . Energy Gun 3 | . 21 . . . . Ballistic Gun 17 | . . 21 25 23 16 Naked Turns 25 | . 25 . . . . Heaviest Build 21 | . 21 9 12 13 13 Greatest Support 46 | 3 46 3 22 22 22 Greatest Overweight (x) 3 | . 3 2 . . 1 Average Overweight (x) . | . . . . . . Largest Inventory Capacity 10 | 10 10 10 10 10 10 Average Capacity 10 | 10 10 10 10 10 10 Most Carried 5 | . 5 . 1 1 . Average Carried . | . 1 . . . . Final Capacity 10 | 10 10 10 10 10 10 Final Carried 1 | . . . 1 . . Class Distribution -------------------- 50% | Skirmisher 39% | Mutant 10% | Gunner Dominant Class ---------------- Mutant | -10/Materials Gunner | -9/Materials Skirmisher | -8/Materials Skirmisher | -7/Factory Skirmisher | -6/Factory Resources | -11 -10 -9 -8 -7 -6 ----------- Run | Scr Mat Mat Mat Fac Fac Matter Collected 919 | . 204 302 84 156 173 Remotely . | . . . . . . Salvage Created 1556 | . 280 488 221 156 411 Parts . | . . . . . . Haulers Intercepted 2 | . . 1 . 1 . Recyclers Shooed . | . . . . . . Parts Field Recycled . | . . . . . . Retrieved Matter . | . . . . . . Parts Self-Destructed . | . . . . . . Prevented . | . . . . . . Kills | -11 -10 -9 -8 -7 -6 ------- Run | Scr Mat Mat Mat Fac Fac Combat Hostiles Destroyed 38 | . 8 13 6 1 10 Melee 1 | . . . . . 1 Guns 34 | . 7 13 6 1 7 Classes Destroyed 6 | . 4 2 . . . Worker 1 | . 1 . . . . Hauler 2 | . . 1 . 1 . Watcher 5 | . 1 1 2 1 . Swarmer 17 | . 3 4 4 . 6 Grunt 16 | . 5 8 . . 3 Sentry 5 | . . 1 2 1 1 Best Kill Streak 6 | . 4 6 4 2 3 Combat Bots Only 5 | . 3 5 4 1 3 Max Kills in Single Turn 2 | . 1 2 2 1 2 Gunslinging 1 | . . . 1 . . Exploded . | . . . . . . Melee 1 | . . . . . 1 Uniques/NPCs Destroyed . | . . . . . . Combat | -11 -10 -9 -8 -7 -6 -------- Run | Scr Mat Mat Mat Fac Fac Damage Taken 3047 | . 711 328 206 150 1652 Core 1318 | . 192 185 31 42 868 Absorbed by Shields . | . . . . . . Core Remaining (%) 72 | 100 23 53 94 94 . Volleys Fired 153 | . 45 39 17 13 39 Largest 3 | . 2 3 3 3 3 Hottest 130 | . 130 73 78 78 78 Shots Fired 276 | . 59 67 37 39 74 Gun 276 | . 59 67 37 39 74 Cannon . | . . . . . . Launcher . | . . . . . . Special . | . . . . . . Kinetic 220 | . 3 67 37 39 74 Thermal 46 | . 46 . . . . Explosive . | . . . . . . Electromagnetic 10 | . 10 . . . . Robot Hit Streak 14 | . 5 9 14 7 8 Robot Miss Streak 5 | . 5 2 3 4 3 Penetration Max . | . . . . . . Secondary Targets 3 | . 2 . 1 . . Max Gunslinging Chain 1 | . 1 . 1 . . Shots Hit Robots 181 | . 34 51 21 19 56 Core Hits 68 | . 10 20 12 6 20 Critical Hits 3 | . . 1 . . 2 Critical Kills 2 | . . 1 . . 1 Critical Parts Destroyed 1 | . . . . . 1 Melee Attacks 20 | . . . . . 20 Impact 15 | . . . . . 15 Slashing 5 | . . . . . 5 Piercing . | . . . . . . Sneak Attacks . | . . . . . . Combat Hostiles . | . . . . . . Follow-up Attacks 1 | . . . . . 1 Damage Inflicted 3161 | . 689 765 334 313 1060 Guns 2770 | . 597 765 334 313 761 Cannons . | . . . . . . Explosions 92 | . 92 . . . . Melee 299 | . . . . . 299 Ramming . | . . . . . . Kinetic 2218 | . 45 765 334 313 761 Thermal 497 | . 497 . . . . Explosive . | . . . . . . Electromagnetic 147 | . 147 . . . . Impact 236 | . . . . . 236 Slashing 63 | . . . . . 63 Piercing . | . . . . . . Highest Corruption . | . . . . . . Average Corruption . | . . . . . . Corruption Purged . | . . . . . . Overload Shots . | . . . . . . Overflow Damage 75 | . 36 . . . 39 Projectiles 14 | . . . . . 14 Explosions 36 | . 36 . . . . Melee 25 | . . . . . 25 Knockbacks 3 | . . . . . 3 Impact 2 | . . . . . 2 Kinetic . | . . . . . . Secondary 1 | . . . . . 1 Self-Inflicted Damage 38 | . 38 . . . . Shots 1 | . 1 . . . . Rammed . | . . . . . . Targets Rammed . | . . . . . . Kicked . | . . . . . . Crushed . | . . . . . . Highest Temperature 631 | . 631 86 16 32 20 Average Temperature 132 | . 191 27 10 12 5 Received Heat Transfer 765 | . 300 117 45 60 243 Effects 13 | . 13 . . . . Shutdowns 2 | . 2 . . . . Energy Bleed 1 | . 1 . . . . Interference 2 | . 2 . . . . Matter Decay 2 | . 2 . . . . Short Circuit 2 | . 2 . . . . Damage (minor) 1 | . 1 . . . . Damage (major) 3 | . 3 . . . . Siege Activations . | . . . . . . Robots Corrupted 1 | . 1 . . . . Combat Hostiles 1 | . 1 . . . . Parts Fried . | . . . . . . Impact Corruptions 4 | . . . . . 4 Robots Melted . | . . . . . . Combat Hostiles . | . . . . . . Parts Melted . | . . . . . . Heat Transferred 1062 | . 1062 . . . . Parts Sabotaged . | . . . . . . Parts Stolen . | . . . . . . Parts Stripped . | . . . . . . Power Chain Reactions 1 | . 1 . . . . Missiles Intercepted . | . . . . . . Alert | -11 -10 -9 -8 -7 -6 ------- Run | Scr Mat Mat Mat Fac Fac Peak Influence 476 | . 172 476 316 140 237 Initial 116 | . . 72 116 65 68 Average 146 | . 71 304 216 91 56 Maximum Alert Level 2 | . . 2 1 . 1 Low Security (%) 71 | 100 100 27 49 100 92 Level 1 21 | . . 39 50 . 7 Level 2 6 | . . 32 . . . Level 3 . | . . . . . . Level 4 . | . . . . . . Level 5 . | . . . . . . High Security . | . . . . . . Max Security . | . . . . . . Squads Dispatched 7 | . 1 3 . . 3 Investigation 3 | . . 1 . . 2 Extermination . | . . . . . . Reinforcement 4 | . 1 2 . . 1 Assault . | . . . . . . Garrison . | . . . . . . Intercept . | . . . . . . Construction Impeded . | . . . . . . Haulers Reinforced . | . . . . . . Stealth | -11 -10 -9 -8 -7 -6 --------- Run | Scr Mat Mat Mat Fac Fac Distress Signals 5 | . 3 1 . 1 . Communications Jammed . | . . . . . . Distress Signals . | . . . . . . Times Spotted 69 | . 13 18 15 3 20 Peak Tracking Total 5 | . 5 5 5 1 5 Tactical Retreats 6 | . . 1 2 . 3 Traps | -11 -10 -9 -8 -7 -6 ------- Run | Scr Mat Mat Mat Fac Fac Traps Triggered . | . . . . . . Indirectly . | . . . . . . Trap Hack Attempts . | . . . . . . Triggered . | . . . . . . Disarmed . | . . . . . . Reprogrammed . | . . . . . . Reused . | . . . . . . Traps Extracted . | . . . . . . Installed . | . . . . . . Triggered . | . . . . . . Machines | -11 -10 -9 -8 -7 -6 ---------- Run | Scr Mat Mat Mat Fac Fac Machines Disabled 2 | . 1 1 . . . Max in Single Turn 1 | . 1 1 . . . Machines Sabotaged . | . . . . . . Garrisons Compromised . | . . . . . . Overloaded Fab Kills . | . . . . . . Fab Network Shutdowns . | . . . . . . Hacking | -11 -10 -9 -8 -7 -6 --------- Run | Scr Mat Mat Mat Fac Fac Machines Accessed 7 | . . 2 2 . 3 Terminals 7 | . . 2 2 . 3 Fabricators . | . . . . . . Repair Stations . | . . . . . . Recycling Units . | . . . . . . Scanalyzers . | . . . . . . Garrison Access . | . . . . . . Total Hacks 24 | . . 7 3 . 14 Successful 6 | . . 1 . . 5 Failed 18 | . . 6 3 . 9 Catastrophic 6 | . . 2 2 . 2 Database Lockouts . | . . . . . . Manual 6 | . . 6 . . . Terminals 24 | . . 7 3 . 14 Fabricators . | . . . . . . Repair Stations . | . . . . . . Recycling Units . | . . . . . . Scanalyzers . | . . . . . . Garrison Access . | . . . . . . Terminal Hacks 6 | . . 1 . . 5 Emergency Access Points 1 | . . . . . 1 Terminal Index 1 | . . . . . 1 Alert Level 1 | . . 1 . . . Unreport Threat 2 | . . . . . 2 Recall Investigation 1 | . . . . . 1 Fabricator Hacks . | . . . . . . Repair Station Hacks . | . . . . . . Recycling Unit Hacks . | . . . . . . Scanalyzer . | . . . . . . Garrison Access Hacks . | . . . . . . Unauthorized Hacks . | . . . . . . Terminals . | . . . . . . Fabricators . | . . . . . . Repair Stations . | . . . . . . Recycling Units . | . . . . . . Scanalyzers . | . . . . . . Garrison Access . | . . . . . . Data Cores Recovered . | . . . . . . Used . | . . . . . . Hacking Detections 7 | . . 2 2 . 3 Full Trace Events 3 | . . 1 . . 2 Feedback Events . | . . . . . . Feedback Blocked . | . . . . . . Robot Schematics Acquired . | . . . . . . Robots Built . | . . . . . . Matter . | . . . . . . Time . | . . . . . . Total Robot Build Rating . | . . . . . . Part Schematics Acquired . | . . . . . . Parts Built . | . . . . . . Matter . | . . . . . . Time . | . . . . . . Total Part Build Rating . | . . . . . . Parts Repaired . | . . . . . . Time . | . . . . . . Parts Recycled . | . . . . . . Recycled Matter . | . . . . . . Retrieved Matter . | . . . . . . Retrieved Components . | . . . . . . Parts Scanalyzed . | . . . . . . Part Schematics Acquired . | . . . . . . Parts Damaged . | . . . . . . Bothacking | -11 -10 -9 -8 -7 -6 ------------ Run | Scr Mat Mat Mat Fac Fac Used RIF Installer . | . . . . . . Robots Hacked . | . . . . . . Non-combat . | . . . . . . Combat . | . . . . . . Robot Hacks Applied . | . . . . . . Relay Couplers Released . | . . . . . . Robots Rewired . | . . . . . . Allies Hacked . | . . . . . . Hacks Repelled . | . . . . . . Allies | -11 -10 -9 -8 -7 -6 -------- Run | Scr Mat Mat Mat Fac Fac Total Allies . | . . . . . . Largest Group . | . . . . . . Highest-Rated Group . | . . . . . . Highest-Rated Ally . | . . . . . . Total Orders . | . . . . . . Ally Attacks . | . . . . . . Total Damage . | . . . . . . Kills . | . . . . . . Allies Corrupted . | . . . . . . Allies Melted . | . . . . . . Intel | -11 -10 -9 -8 -7 -6 ------- Run | Scr Mat Mat Mat Fac Fac Robot Analysis Total . | . . . . . . Derelict Logs Recovered . | . . . . . . Drone Launches . | . . . . . . Drone Recoveries . | . . . . . . Exploration | -11 -10 -9 -8 -7 -6 ------------- Run | Scr Mat Mat Mat Fac Fac Turns Passed 2078 | 10 348 404 481 118 717 Spaces Moved 1107 | 20 172 313 222 57 323 Core 452 | 20 81 313 . . 38 Treads 655 | . 91 . 222 57 285 Legs . | . . . . . . Wheels . | . . . . . . Hover . | . . . . . . Flight . | . . . . . . Fastest Speed 50 | 50 50 50 145 145 50 Average Speed 117 | 50 111 78 145 145 139 Slowest Speed 200 | 50 200 150 145 145 145 Overloaded Moves . | . . . . . . Propulsion Burnouts . | . . . . . . Robots Hopped . | . . . . . . Cave-ins Triggered . | . . . . . . Exploration Rate (%) 18 | 4 36 31 29 2 8 Regions Visited 5 Branch Regions . Pre-discovered Areas . | . . . . . . Known Exits Taken 4 | . 1 1 1 1 . Unknown Exits Taken 1 | 1 . . . . . Scrap Searched . | . . . . . . Spaces Dug . | . . . . . . Terrain Destroyed 1 | . . . . . 1 Melee . | . . . . . . Projectile 1 | . . . . . 1 AOE . | . . . . . . Terrain Rammed . | . . . . . . Walls Destroyed . | . . . . . . Machines Disabled . | . . . . . . Actions | -11 -10 -9 -8 -7 -6 --------- Run | Scr Mat Mat Mat Fac Fac Total 1666 | 19 272 435 360 73 507 Wait 380 | . 45 84 122 3 126 Move 1102 | 19 171 312 221 56 323 Hop . | . . . . . . Pick Up . | . . . . . . Fast Attach . | . . . . . . Attach 7 | . 6 . . 1 . Detach 5 | . 5 . . . . Swap . | . . . . . . Drop . | . . . . . . Fire 153 | . 45 39 17 13 39 Melee 19 | . . . . . 19 Ram . | . . . . . . Kick . | . . . . . . Crush . | . . . . . . Escape Stasis . | . . . . . . Rewire . | . . . . . . Trap . | . . . . . . Miscellaneous . | . . . . . . Route ------- -11/Scrapyard -10/Materials (discovered 2 exits: *Mat / [*Min]) -9/Materials -8/Materials -7/Factory -6/Factory History --------- Turn | Location | Event 4 | -11/Scrapyard | Discovered new exit (range 13) 11 | -11/Scrapyard | Entered Materials 222 | -10/Materials | Discovered new exit (range 11) 303 | -10/Materials | Core integrity fell below 50% 328 | -10/Materials | Discovered new exit (range 12) 333 | -10/Materials | Build established: Mutant 335 | -10/Materials | Identified exit to Materials 337 | -10/Materials | Lost 5 parts (1p2n1u1w) 359 | -10/Materials | Entered another Materials area 359 | -9/Materials | Evolved 2 slots: Utility x1, Weapon x1 739 | -9/Materials | Discovered new exit (range 16) 760 | -9/Materials | Identified exit to Materials 763 | -9/Materials | Entered another Materials area 763 | -8/Materials | Evolved 2 slots: Power x1, Weapon x1 1222 | -8/Materials | Discovered new exit (range 16) 1237 | -8/Materials | Build established: Skirmisher 1243 | -8/Materials | Identified exit to Factory 1244 | -8/Materials | Entered Factory 1244 | -7/Factory | Evolved 2 slots: Utility x2 1359 | -7/Factory | Discovered new exit (range 2) 1360 | -7/Factory | Identified exit to Factory 1362 | -7/Factory | Entered another Factory area 1362 | -6/Factory | Evolved 2 slots: Propulsion x1, Utility x1 2035 | -6/Factory | Lost 6 parts (1n2u3w) 2065 | -6/Factory | Core integrity fell below 50% 2075 | -6/Factory | Core integrity fell below 20% 2079 | -6/Factory | Destroyed by H-66 Slayer with Gauss Rifle Last Messages --------------- >>Recall(Investigation) Establishing remote squad link... No tasked investigation squads found. 02033_ ALERT: Suspicious activity at Terminal F012. Dispatching Investigation squad. 02035_ K-01 Serf collects debris. [Purchased: Katana] 02064_ Slug penetrates Door. 02064_ Penetrated by Slug. 02065_ Slug penetrates Wall. 02068_ U-05 Engineer builds a Door. 02069_ Great Maul follow-up attack on H-66 Slayer. 02071_ Penetrated by Slug. 02072_ U-05 Engineer builds a Door. 02074_ Penetrated by Slug. 02075_ Great Maul destroyed. 02075_ U-05 Engineer destroyed. 02077_ Penetrated by Slug. 02078_ U-05 Engineer builds a Door. 02079_ Penetrated by Slug. Map ----- +----------------------------------------------------+ | ????????????????????????????????????????? ## | | ???????????????????????????????????????? ? #? | | ????????????????????????????????????????? ? ## | | ???????????????????????????????????????? ## | | ???????????????????????????????????????? #### | | ????????????????????????????????????????? #### | | ???????????????????????? ?????################### | | ???????????????????? ????# | | ????????????????? ????# #####+ | | ???????????????? ????# ## % | | ???????????????? ????# ##"""" | | ????????????????# ????# #####% ##"""" | | ????????????????# #???# #####+## ##"""" | | ????????????????# #???# # # ##"""" | | ????????????????# #???# # # ##"""" | | ?????????????? ## ##### # # ##"""" | | ?????????????? /A ## k/% # #???"" | | ????????????+??# # # #? | | ??????????????## # # #????# | | ??????????????+ ######## ????? | | ????????????????# #??????# ????# | | ????????????????# #??????# ???? | | ????????????????# t k #??????? ???? | | ????????????????# #??????? ??? | | ????????????????# hh #####+#? ?????? | | ????????? Rk k uk @h R%%% ???? | | ????????????###########+#######+#######??????????? | | ????????????????????# # #???????????? | | ????????????????????# """ # "T" #???????????? | | ????????????????????# """ # """ #???????????? | | ????????????????????# """ # #???????????? | | ????????????????????# ###########???????????? | | ????????????????????# #?????????????????????? | | ????????????????????########?????????????????????? | | ?????????????????????????????????????????????????? | | ?????????????????????????????????????????????????? | | ?????????????????????????????????????????????????? | | ?????????????????????????????????????????????????? | | ?????????????????????????????????????????????????? | | ?????????????????????????????????????????????????? | | ?????????????????????????????????????????????????? | | ?????????????????????????????????????????????????? | | ?????????????????????????????????????????????????? | | ?????????????????????????????????????????????????? | | ?????????????????????????????????????????????????? | | ?????????????????????????????????????????????????? | | ?????????????????????????????????????????????????? | | ?????????????????????????????????????????????????? | | ?????????????????????????????????????????????????? | | ?????????????????????????????????????????????????? | +----------------------------------------------------+ Best States ------------- Heat Dissipation 37 Energy Generation 14 Energy Capacity 280 Matter Stores 300 Matter Capacity 300 Sight Range 16 Terrain Scan Range 24 Terrain Scan Density 210 Armor Coverage 225 Reclamation Efficiency 20 Evasion (%) 50 Recoil Reduction 2 Item Schematics ----------------- None Robot Schematics ------------------ None Fabricated ------------ Nothing Alien Tech Used ----------------- None Achievements -------------- None Challenges ------------ None Cogshop Purchases (20) ------------------------ Imp. Treads (874) Imp. Treads (874) Hvy. Ion Engine (699) Med. Armor Plating (699) Particle Gun (699) Particle Gun (699) Lightning Gun (Loot Box) Signal Interpreter (485) Autogun (621) Enh. Autogun (799) Enh. Autogun (799) Adv. Treads (970) Lrn. Terrain Scanner (802) Adv. Terrain Scan Processor (831) Gauss Rifle (1230) Adv. Reclamation Unit (Loot Box) Battle Rifle (943) Battle Rifle (943) Great Maul (631) Katana (963) Game ------ Seed ScanLongswordDissipator Manual? 0 Play Time 00:25:12 Cumulative 111.4 hours Start 2022.01.19 @ 21:32:01 End 2022.01.19 @ 21:52:51 Sessions 1 Manual Loads 0 Difficulty Rogue Special Mode AFD2019/Pay2Buy Game No. 159 Rogue 159 Adventurer 0 Explorer 0 Win Type - Total 2 Types 1/0/1/0/0/0/0/0/0 Lore% 51 Gallery% 61 Achievement% 48 Wizard Run 0 Options --------- ASCII 0 Keyboard 0 Movement Mouse Keybinds 0 Fullscreen 2 Font 18/X11 Map View 76x50 Tactical HUD 1 Map Filters NONE Filters NONE Steam 1 RUN: 08bae9aa-ef78-44ca-86f9-d8d73dac5af9